bitfinex/quotes_ETHUSD_20240827
["timestamp","ask_amount","ask_price","bid_price","bid_amount"]
[1724765870895,3.81373,2622.1,2621.6,3.81444]
[1724765871436,3.81373,2622.1,2621.6,7.6288]
[1724765871784,3.81322,2622.5,2621.9,3.8139]
[1724765871926,3.81322,2622.5,2622.0,3.81381]
[1724765872328,2.3578,2622.9,2622.1,3.81365]
[1724765872496,3.81288,2622.7,2622.2,3.8135]
[1724765872694,0.381288,2622.6,2622.3,3.81344]
[1724765872926,7.45,2623.1,2622.5,3.81308]
[1724765873128,6.09159,2623.3,2622.6,3.813]
[1724765873129,3.81221,2623.2,2622.6,3.813]
[1724765873392,3.81229,2623.1,2622.6,3.813]
[1724765873598,3.81229,2623.1,2622.6,7.62592]
[1724765873819,3.81208,2623.3,2622.8,3.81263]
[1724765874009,3.81199,2623.3,2622.7,6.30933]
[1724765874201,3.81199,2623.3,2622.8,3.81261]
[1724765874440,3.81176,2623.5,2622.9,3.81255]
[1724765874608,8.232726,2623.5,2622.7,6.30933]
[1724765874937,3.81202,2623.3,2622.7,6.30933]
[1724765875299,3.81217,2623.2,2622.7,6.30933]
[1724765876136,3.81233,2623.1,2622.5,3.8131]
[1724765876305,3.81263,2622.9,2622.3,7.62671]
[1724765876506,3.81263,2622.9,2622.4,3.0]
[1724765876695,3.81285,2622.8,2622.2,5.23653653]
[1724765876898,3.81364,2622.2,2621.8,7.3]
[1724765877233,7.62675,2622.4,2621.8,3.81414]
[1724765877432,7.62675,2622.4,2621.7,3.81423]
[1724765877433,3.81369,2622.2,2621.5,6.28663]
[1724765877739,4.195189,2622.1,2621.1,14.87003653]
[1724765877923,3.81382,2622.1,2621.4,3.81475]
[1724765878239,3.81351,2622.3,2621.5,0.07628759]
[1724765878439,3.81351,2622.3,2621.7,3.81422]
[1724765878599,3.81319,2622.5,2621.4,7.3]
[1724765878600,3.81388,2622.0,2621.4,7.3]
[1724765878943,3.81334,2622.4,2621.4,7.3]
[1724765878944,3.8135,2622.3,2621.4,7.3]
[1724765879268,3.81394,2622.0,2621.4,7.3]
[1724765879539,3.81425,2621.8,2621.4,7.3]
[1724765879724,7.62852,2621.8,2621.2,3.81496]
[1724765879923,3.81425,2621.8,2621.2,3.81496]
[1724765880323,3.81425,2621.8,2621.1,11.38512653]
[1724765880324,3.81463,2621.5,2621.1,2.3335]
[1724765880551,3.81463,2621.5,2621.0,3.0]
[1724765880552,2.4397,2622.2,2621.0,0.07630202]
[1724765880838,7.62814,2621.9,2621.3,3.81479]
[1724765881046,7.62814,2621.9,2621.1,3.81511]
[1724765881047,3.81434,2621.7,2621.1,3.81509]
[1724765881237,3.81462,2621.5,2620.9,3.81539]
[1724765881534,3.81462,2621.5,2620.9,7.63078]
[1724765881701,3.81462,2621.5,2620.9,3.81539]
[1724765882133,4.195774,2621.7,2621.1,3.81517]
[1724765882298,3.81446,2621.6,2621.0,3.81528]
[1724765882501,3.81499,2621.3,2620.7,9.14918]
[1724765882701,3.8149,2621.4,2620.8,6.81562]
[1724765882951,3.81486,2621.4,2620.8,3.0]
[1724765883178,3.81531,2621.1,2620.7,3.0]
[1724765883379,7.63085,2621.0,2620.4,6.2072303]
[1724765883585,3.81548,2620.9,2620.4,2.3911103]
[1724765883873,3.81585,2620.7,2620.4,0.09134549]
[1724765884852,3.81565,2620.8,2620.4,0.09134549]
[1724765885073,4.197116,2620.9,2620.4,0.09134549]
[1724765885377,8.012696,2620.9,2620.4,0.09134549]
[1724765885575,4.197116,2620.9,2620.4,0.09134549]
[1724765885747,3.81526,2621.1,2620.5,3.81593]
[1724765886076,3.81537,2621.0,2620.5,3.81593]
[1724765886382,3.81565,2620.8,2620.4,0.09134549]
[1724765886577,7.63142,2620.8,2620.4,0.09134549]
[1724765886799,0.381537,2620.9,2620.4,3.90750549]
[1724765887075,7.63057,2621.1,2620.5,3.81593]
[1724765887281,3.81528,2621.1,2620.4,3.90750549]
[1724765887840,3.81555,2620.9,2620.4,3.90750549]
[1724765888241,3.81586,2620.7,2620.4,0.09134549]
[1724765888536,3.81478,2621.4,2620.4,0.09134549]
[1724765888537,7.63212,2620.5,2620.4,0.09134549]
[1724765888741,8.395332,2620.5,2620.4,0.09134549]
[1724765889078,14.526992,2620.5,2620.4,0.09134549]
[1724765889439,10.710932,2620.5,2620.4,0.09134549]
[1724765890892,14.526992,2620.5,2620.4,0.09134549]
[1724765891354,17.526992,2620.5,2620.4,0.09134549]
[1724765893594,8.395332,2620.5,2620.4,0.09134549]
[1724765894681,3.81606,2620.5,2620.4,0.09134549]
[1724765894925,3.816,2620.6,2620.4,0.09134549]
[1724765895082,7.63212,2620.5,2620.4,0.09134549]
[1724765895285,12.211392,2620.5,2620.4,0.09134549]
[1724765896983,19.577452,2620.5,2620.4,0.09134549]
[1724765897587,15.761392,2620.5,2620.4,0.09134549]
[1724765897806,19.027452,2620.5,2620.4,0.09134549]
[1724765897978,15.211392,2620.5,2620.4,0.09134549]
[1724765898185,19.027452,2620.5,2620.4,0.09134549]
[1724765898515,21.839552,2620.5,2620.4,0.09134549]
[1724765899988,25.655612,2620.5,2620.4,0.09134549]
[1724765901007,18.023492,2620.5,2620.4,0.09134549]
[1724765901820,17.473492,2620.5,2620.4,0.09134549]
[1724765902083,18.023492,2620.5,2620.4,0.09134549]
[1724765902374,21.839552,2620.5,2620.4,0.09134549]
[1724765902969,18.023492,2620.5,2620.4,0.09134549]
[1724765903175,21.839552,2620.5,2620.4,0.09134549]
[1724765903649,21.839552,2620.5,2620.4,5.49e-06]
[1724765904539,25.655612,2620.5,2620.4,5.49e-06]
[1724765905990,21.839552,2620.5,2620.4,5.49e-06]
[1724765906288,25.655612,2620.5,2620.4,5.49e-06]
[1724765906588,2.2555,2619.4,2618.4,2.2708]
[1724765906786,3.81858,2618.8,2618.4,2.2708]
[1724765907144,7.63726,2618.8,2618.4,2.2708]
[1724765907383,12.7055,2619.4,2618.4,2.2708]
[1724765907384,7.63782,2618.6,2618.4,2.2708]
[1724765907591,3.81898,2618.5,2618.4,2.2708]
[1724765907758,3.81885,2618.6,2618.4,2.2708]
[1724765908292,3.81924,2618.4,2617.9,2.3017]
[1724765908450,3.81873,2618.7,2617.9,3.21987368]
[1724765908451,3.81927,2618.3,2617.9,3.21987368]
[1724765908650,3.81927,2618.3,2617.9,2.3017]
[1724765910091,3.81949,2618.2,2617.9,2.3017]
[1724765910256,3.81931,2618.3,2617.9,2.3017]
[1724765910770,3.81943,2618.2,2617.9,2.3017]
[1724765910954,3.81923,2618.4,2617.9,2.3017]
[1724765911155,3.81929,2618.3,2617.9,2.3017]
[1724765911372,3.81941,2618.2,2617.9,2.3017]
[1724765911547,7.6397,2617.9,2617.8,0.1253103]
[1724765911745,11.45955,2617.9,2617.8,0.1253103]
[1724765911949,12.00955,2617.9,2617.8,0.1253103]
[1724765912147,30.66721353,2617.9,2617.8,3e-07]
[1724765912347,30.66721353,2617.9,2615.2,0.1253103]
[1724765912348,3.82208,2616.4,2616.0,2.3389]
[1724765912577,9.21836353,2617.9,2615.2,0.1253103]
[1724765912578,5.61874453,2616.3,2615.2,0.1253103]
[1724765912787,3.82305,2615.8,2615.2,3.9490403]
[1724765912992,3.82266,2616.0,2615.3,3.82363]
[1724765913207,3.82266,2616.0,2615.2,3.9490403]
[1724765913208,3.82308,2615.7,2615.2,0.1253103]
[1724765913407,3.82284,2615.9,2615.2,0.1253103]
[1724765913592,3.82284,2615.9,2615.2,0.52022233]
[1724765913791,3.82284,2615.9,2615.2,0.1253103]
[1724765913994,6.82224,2616.3,2615.2,0.1253103]
[1724765913995,3.82322,2615.6,2615.2,0.1253103]
[1724765914197,9.05924653,2616.0,2615.2,0.1253103]
[1724765914377,3.82335,2615.6,2615.2,0.1253103]
[1724765914587,7.6473,2615.3,2615.2,0.1253103]
[1724765914965,3.0,2615.5,2615.2,0.1253103]
[1724765915209,3.82365,2615.3,2615.2,0.1253103]
[1724765915620,7.6473,2615.3,2615.2,0.1253103]
[1724765916167,9.9507,2615.3,2615.2,0.1253103]
[1724765916415,7.6473,2615.3,2615.2,0.1253103]
[1724765916710,3.82365,2615.3,2615.2,0.1253103]
[1724765916991,3.82355,2615.4,2615.2,0.1253103]
[1724765917147,3.82365,2615.3,2615.2,0.1253103]
[1724765917299,3.82338,2615.5,2615.2,0.1253103]
[1724765917505,3.82354,2615.4,2615.2,0.1253103]
[1724765917842,3.82365,2615.3,2615.2,0.1253103]
[1724765917998,3.82351,2615.4,2615.2,0.1253103]
[1724765918200,6.82309,2615.7,2615.2,0.1253103]
[1724765918441,3.82309,2615.7,2615.2,0.1253103]
[1724765918644,3.82268,2616.0,2615.2,0.1253103]
[1724765918645,3.82263,2616.0,2615.2,0.1253103]
[1724765918799,3.82148,2616.8,2615.3,2.40946941]
[1724765919000,3.82148,2616.8,2615.9,2.333]
[1724765919535,3.82202,2616.5,2615.9,2.333]
[1724765919857,3.82151,2616.8,2615.9,2.333]
[1724765920001,4.203241,2617.1,2616.3,3.82218]
[1724765920371,3.82075,2617.3,2616.4,2.4547]
[1724765920520,0.7,2618.2,2616.4,2.4547]
[1724765920521,3.82057,2617.5,2616.4,2.53113851]
[1724765920735,2.79137666,2618.4,2616.9,3.82129]
[1724765920936,8.20810434,2618.4,2616.6,6.27633]
[1724765921149,3.8202,2617.7,2616.9,3.82125]
[1724765921432,3.8202,2617.7,2616.9,3.82127]
[1724765921640,3.81967,2618.1,2616.9,0.79134014]
[1724765921851,3.82051,2617.5,2616.8,3.0]
[1724765922175,3.82092,2617.2,2616.6,2.4547]
[1724765922466,3.82132,2616.9,2616.6,2.4547]
[1724765922674,3.82093,2617.2,2616.6,2.4547]
[1724765922821,2.3696,2617.7,2616.2,2.2811]
[1724765922822,3.82147,2616.8,2616.2,2.2811]
[1724765923017,0.382093,2617.1,2616.2,2.2811]
[1724765923018,3.82118,2617.0,2616.3,3.82218]
[1724765923217,3.82031,2617.6,2616.2,6.10342]
[1724765923458,3.82128,2617.0,2616.3,4.3532235]
[1724765923654,3.82128,2617.0,2616.2,6.10342]
[1724765923655,3.82135,2616.9,2616.2,6.10342]
[1724765924168,3.82133,2616.9,2616.2,6.10342]
[1724765924378,4.169003,2617.5,2616.2,6.10342]
[1724765924379,3.82177,2616.6,2616.2,2.2811]
[1724765924681,3.82122,2617.0,2616.4,3.82202]
[1724765924836,3.82089,2617.2,2616.3,3.82212]
[1724765925166,3.82089,2617.2,2616.5,3.82178]
[1724765925378,3.82015,2617.7,2616.9,3.82121]
[1724765925552,5.83850434,2618.4,2617.0,2.4191]
[1724765925553,0.42177666,2618.4,2617.0,2.4191]
[1724765925757,3.81988,2617.9,2617.2,3.82086]
[1724765926249,3.81965,2618.1,2617.3,3.82061]
[1724765926454,3.81998,2617.9,2617.1,3.82091]
[1724765926624,3.8201,2617.8,2617.1,4.36282]
[1724765926825,3.8201,2617.8,2617.1,4.43922981]
[1724765927140,3.81998,2617.9,2617.2,3.82086]
[1724765927459,3.81998,2617.9,2617.1,4.36282]
[1724765927671,3.82028,2617.7,2617.0,5.4191]
[1724765927870,3.82028,2617.7,2617.0,5.49551328]
[1724765928074,4.201878,2617.9,2617.1,3.82087]
[1724765928220,3.81988,2617.9,2617.3,3.82062]
[1724765928420,3.82017,2617.7,2617.1,4.444907]
[1724765928632,3.82017,2617.7,2617.1,3.82091]
[1724765928835,2.2799,2618.6,2617.2,0.07641327]
[1724765929065,2.2799,2618.6,2617.2,0.7080616]
[1724765929066,0.22799,2618.5,2617.2,0.7080616]
[1724765929261,0.22799,2618.5,2617.1,6.8209]
[1724765929262,7.64026,2617.8,2617.1,6.8209]
[1724765929463,3.81976,2618.0,2617.3,3.82071]
[1724765929666,3.81948,2618.2,2617.5,2.2784]
[1724765929872,3.81927,2618.3,2617.7,3.82011]
[1724765930167,3.81981,2618.0,2617.5,2.2784]
[1724765930386,7.63897,2618.2,2617.5,6.09883]
[1724765930522,7.63898,2618.2,2617.6,3.82028]
[1724765930723,0.763898,2618.2,2617.5,2.2784]
[1724765930981,0.22799,2618.5,2617.5,2.2784]
[1724765930982,3.82024,2617.7,2617.5,2.2784]
[1724765931199,3.8201,2617.8,2617.5,2.2784]
[1724765931324,3.82061,2617.4,2617.1,5.3956]
[1724765931525,3.82061,2617.4,2617.1,2.3956]
[1724765931729,3.82018,2617.7,2616.7,2.3092]
[1724765931972,3.82088,2617.2,2616.7,2.3092]
[1724765932173,3.82069,2617.4,2616.7,2.3092]
[1724765932374,3.82088,2617.2,2616.7,2.3092]
[1724765932751,0.382069,2617.3,2616.7,2.3092]
[1724765933043,0.420204,2617.7,2616.8,0.07642465]
[1724765933263,3.82024,2617.7,2617.2,2.3829]
[1724765933574,3.81958,2618.1,2617.2,2.3829]
[1724765933729,2.4612,2618.3,2616.9,2.3829]
[1724765933931,3.82021,2617.7,2617.1,3.82099]
[1724765934130,3.82021,2617.7,2616.9,6.20411]
[1724765934383,7.64138,2617.4,2616.9,2.3829]
[1724765934543,0.55,2618.2,2616.9,2.3829]
[1724765934544,3.82034,2617.6,2616.9,6.2806022]
[1724765934739,4.36946,2618.2,2616.9,2.3829]
[1724765934953,3.82007,2617.8,2616.9,2.3829]
[1724765935157,3.82007,2617.8,2616.5,0.07641799]
[1724765935158,3.81974,2618.0,2617.4,2.3829]
[1724765935381,0.22799,2618.5,2617.4,2.3829]
[1724765935382,3.82018,2617.7,2617.4,2.3829]
[1724765935532,3.8193,2618.3,2617.4,2.3829]
[1724765935533,3.82029,2617.6,2617.4,2.3829]
[1724765935733,3.82043,2617.5,2617.4,2.3829]
[1724765935960,3.82029,2617.6,2617.4,2.3829]
[1724765936132,3.82053,2617.5,2617.0,3.0]
[1724765936350,3.82029,2617.6,2617.1,2.3592]
[1724765936351,3.82059,2617.4,2617.1,2.3592]
[1724765936535,3.82087,2617.2,2617.1,2.3592]
[1724765936877,7.64078,2617.6,2617.1,2.3592]
[1724765937042,4.584538,2617.5,2617.1,2.3592]
[1724765937445,2.3615,2618.1,2617.1,2.3592]
[1724765937649,3.82057,2617.5,2617.1,2.3592]
[1724765937885,3.82024,2617.7,2617.1,6.18019]
[1724765938088,3.82024,2617.7,2617.1,10.00113]
[1724765938233,3.82024,2617.7,2617.1,6.18014]
[1724765938234,7.64047,2617.7,2617.1,6.18014]
[1724765938590,3.82054,2617.5,2617.1,2.3592]
[1724765938746,3.82047,2617.5,2616.6,2.4398]
[1724765938948,3.82095,2617.2,2616.6,6.26147]
[1724765939551,0.382047,2617.5,2616.6,6.26147]
[1724765939552,3.82141,2616.9,2616.6,2.4398]
[1724765939751,11.652547,2617.5,2616.6,2.4398]
[1724765939998,3.82111,2617.1,2616.6,6.26146]
[1724765940296,3.82081,2617.3,2616.8,3.82144]
[1724765940496,3.82057,2617.5,2617.0,2.4398]
[1724765940865,2.75803,2618.2,2617.0,2.4398]
[1724765940866,3.81988,2617.9,2617.0,2.4398]
[1724765941071,3.81988,2617.9,2617.2,3.82078]
[1724765941072,3.82023,2617.7,2617.2,3.82078]
[1724765941396,3.81966,2618.1,2617.5,3.82035]
[1724765941603,4.04701,2618.5,2617.4,2.3115]
[1724765941760,3.8201,2617.8,2617.4,2.3115]
[1724765941951,3.82002,2617.8,2617.4,2.3115]
[1724765942486,3.82005,2617.8,2617.4,2.3115]
[1724765942683,3.82067,2617.4,2617.0,2.3115]
[1724765942884,0.382005,2617.8,2617.2,3.82079]
[1724765942885,4.202095,2617.8,2617.2,3.82079]
[1724765943084,3.82009,2617.8,2617.3,3.82066]
[1724765943395,7.64018,2617.8,2617.3,3.82066]
[1724765943595,3.82102,2617.1,2617.0,2.3115]
[1724765943762,7.64129,2617.4,2617.0,2.3115]
[1724765943957,3.82032,2617.6,2617.0,2.3115]
[1724765944269,3.81948,2618.2,2617.0,2.3115]
[1724765944471,5.496618,2618.1,2617.0,2.3115]
[1724765944673,3.8208,2617.3,2616.6,2.3479]
[1724765944885,3.82103,2617.1,2616.6,2.3479]
[1724765945084,3.82051,2617.5,2616.9,3.82123]
[1724765945296,3.81998,2617.9,2617.2,3.82086]
[1724765945497,3.81998,2617.9,2617.3,0.382086]
[1724765945810,3.81998,2617.9,2617.2,3.82075]
[1724765945978,3.81998,2617.9,2617.3,3.82071]
[1724765946184,3.0,2618.4,2617.1,0.07640861]
[1724765946185,3.82037,2617.6,2617.1,0.07641221]
[1724765946351,3.0,2618.4,2617.0,2.3479]
[1724765946352,3.82005,2617.8,2617.0,2.3479]
[1724765946555,3.82053,2617.5,2617.0,2.3479]
[1724765946956,3.8201,2617.8,2617.0,6.16892]
[1724765947201,3.8203,2617.6,2617.0,6.86987053]
[1724765947429,3.82082,2617.3,2617.0,2.3479]
[1724765947636,3.8206,2617.4,2617.0,2.3479]
[1724765947801,2.6376,2618.1,2616.7,2.3113]
[1724765948007,3.82142,2616.9,2616.3,3.82217]
[1724765948231,3.82142,2616.9,2616.0,2.3113]
[1724765948232,3.82079,2617.3,2616.6,2.3113]
[1724765948452,3.82111,2617.1,2616.6,2.3113]
[1724765948605,3.82132,2616.9,2616.6,2.3113]
[1724765949048,3.82172,2616.7,2616.2,2.3113]
[1724765949212,3.82139,2616.9,2616.3,3.82216]
[1724765950047,3.82049,2617.5,2616.6,2.3113]
[1724765950348,3.81977,2618.0,2616.9,2.3113]
[1724765950561,4.04701,2618.5,2617.7,3.82014]
[1724765950562,3.81945,2618.2,2617.7,3.82014]
[1724765950875,3.81945,2618.2,2617.6,3.82028]
[1724765951253,3.81945,2618.2,2617.5,6.1316]
[1724765951422,0.22799,2618.5,2617.6,0.68956102]
[1724765951423,3.81904,2618.5,2617.6,0.68956102]
[1724765951626,3.81861,2618.8,2618.2,3.81938]
[1724765951930,3.8184,2618.9,2618.4,2.4703]
[1724765952464,3.8183,2619.0,2618.4,2.4703]
[1724765953081,3.81775,2619.4,2618.6,3.81871]
[1724765953227,3.81776,2619.4,2618.7,3.07636034]
[1724765953422,3.81753,2619.5,2618.8,0.07636033]
[1724765953663,3.81808,2619.2,2618.7,3.0]
[1724765953931,3.81748,2619.6,2618.9,3.81838]
[1724765954126,3.81736,2619.7,2619.1,2.431]
[1724765954529,3.81699,2619.9,2619.2,3.89429439]
[1724765954877,3.81725,2619.7,2619.1,3.13990039]
[1724765955174,3.81764,2619.5,2619.1,2.431]
[1724765955632,3.81768,2619.4,2619.1,2.431]
[1724765956137,3.81764,2619.5,2619.1,2.431]
[1724765957567,3.81764,2619.5,2618.1,3.81955]
[1724765957568,3.81791,2619.3,2618.7,2.4628]
[1724765957772,4.199444,2619.4,2618.8,3.81851]
[1724765958067,3.81823,2619.1,2618.7,2.4628]
[1724765958276,3.81791,2619.3,2618.7,2.4628]
[1724765958700,7.63585,2619.3,2618.7,2.4628]
[1724765958869,3.81791,2619.3,2618.7,2.4628]
[1724765959196,3.81831,2619.0,2618.1,6.07141]
[1724765959401,3.81776,2619.4,2618.7,3.81865]
[1724765959702,3.81798,2619.2,2618.7,2.3351]
[1724765959893,7.63607,2619.2,2618.7,2.3351]
[1724765960203,7.63606,2619.2,2618.7,2.3351]
[1724765960349,7.63606,2619.2,2618.3,3.81921]
[1724765960350,3.81825,2619.0,2618.3,6.15427]
[1724765960555,0.763606,2619.1,2618.3,2.3351]
[1724765960755,3.81897,2618.6,2618.3,2.3351]
[1724765961056,3.81861,2618.8,2618.3,2.3351]
[1724765961955,3.819,2618.5,2618.3,2.3351]
[1724765962155,3.81856,2618.8,2618.3,2.3351]
[1724765962394,3.81832,2619.0,2618.3,2.3351]
[1724765962588,3.81872,2618.7,2618.3,2.3351]
[1724765962791,3.81829,2619.0,2618.3,6.15424]
[1724765963160,3.81855,2618.8,2618.3,2.3351]
[1724765963481,3.81831,2619.0,2618.5,3.81896]
[1724765963683,3.81815,2619.1,2618.5,3.81896]
[1724765963865,3.81827,2619.0,2618.3,6.15425]
[1724765964071,3.81802,2619.2,2618.4,0.69179973]
[1724765964408,3.81713,2619.8,2618.5,5.41466921]
[1724765964409,3.81743,2619.6,2618.5,5.41466921]
[1724765964708,3.81743,2619.6,2618.9,3.81836]
[1724765964709,3.8176,2619.5,2618.9,3.81836]
[1724765964860,3.8176,2619.5,2619.0,0.07635431]
[1724765965065,3.8176,2619.5,2619.0,3.89456431]
[1724765965266,3.8176,2619.5,2619.0,4.66586274]
[1724765966290,3.8176,2619.5,2619.1,2.3271]
[1724765966695,6.25565,2620.5,2619.1,2.3271]
[1724765966696,3.81696,2619.9,2619.1,2.3271]
[1724765966904,3.81696,2619.9,2618.7,2.3271]
[1724765966905,3.81795,2619.2,2618.7,2.3271]
[1724765967092,3.8177,2619.4,2618.8,0.07635916]
[1724765967414,3.8177,2619.4,2618.8,4.41368628]
[1724765967415,7.63546,2619.4,2618.8,4.41368628]
[1724765967642,3.81759,2619.5,2618.7,2.3271]
[1724765967927,6.25605,2620.2,2618.4,2.4091]
[1724765967928,3.81847,2618.9,2618.4,2.4091]
[1724765968098,3.81858,2618.8,2618.4,2.4091]
[1724765968624,3.81884,2618.6,2618.4,2.4091]
[1724765968797,3.81862,2618.8,2618.4,2.4091]
[1724765968998,3.81833,2619.0,2618.4,6.90514469]
[1724765969198,3.818,2619.2,2618.4,6.22815]
[1724765969496,3.81854,2618.8,2618.4,2.4091]
[1724765969720,3.8177,2619.4,2618.4,2.4091]
[1724765970016,3.81803,2619.2,2618.6,3.81875]
[1724765970223,3.81803,2619.2,2618.6,4.441535]
[1724765970435,3.81818,2619.1,2618.6,4.441535]
[1724765970598,3.81828,2619.0,2618.4,2.4091]
[1724765970926,0.22543,2619.5,2618.4,2.4091]
[1724765970927,3.81877,2618.7,2618.4,2.4091]
[1724765971101,2.4587,2619.3,2618.4,2.4091]
[1724765971424,3.81894,2618.6,2618.2,3.0]
[1724765971624,3.8186,2618.8,2618.2,3.81937]
[1724765971784,3.81832,2619.0,2618.4,3.81904]
[1724765971986,3.81802,2619.2,2618.3,0.929447]
[1724765971987,3.81863,2618.8,2618.3,3.81913]
[1724765972183,3.81833,2619.0,2618.3,5.130501]
[1724765972394,3.81805,2619.2,2618.4,2.3118]
[1724765972919,3.81826,2619.0,2618.5,3.8189]
[1724765973122,3.81826,2619.0,2618.5,4.813889]
[1724765973424,3.81812,2619.1,2618.5,4.813889]
[1724765973630,3.8184,2618.9,2618.5,0.994989]
[1724765974006,4.199327,2619.5,2618.7,2.4376]
[1724765974007,3.81791,2619.3,2618.7,2.4376]
[1724765974206,0.381757,2619.5,2619.1,2.4376]
[1724765974207,3.81765,2619.5,2619.1,2.4376]
[1724765974442,3.81774,2619.4,2619.1,2.68136]
[1724765974736,3.8179,2619.3,2619.1,2.4376]
[1724765974891,3.81795,2619.2,2618.7,2.4376]
[1724765975088,3.81788,2619.3,2618.7,2.4376]
[1724765975320,3.81842,2618.9,2618.7,2.4376]
[1724765975638,0.381715,2619.7,2618.4,3.0]
[1724765975838,3.81779,2619.4,2618.4,3.81911]
[1724765975994,3.8181,2619.1,2618.3,2.4376]
[1724765976193,3.8181,2619.1,2618.5,3.81887]
[1724765976194,3.81819,2619.1,2618.5,3.81887]
[1724765976395,3.81752,2619.5,2618.3,2.4376]
[1724765976694,3.381715,2619.7,2616.9,6.20921109]
[1724765976695,3.81942,2618.2,2618.0,2.4376]
[1724765977026,3.81921,2618.4,2618.0,2.4376]
[1724765977624,3.8195,2618.2,2617.6,2.4376]
[1724765977791,7.63903,2618.2,2617.7,0.62579]
[1724765978009,3.81927,2618.3,2617.6,2.4376]
[1724765978204,3.81998,2617.9,2617.6,2.4376]
[1724765978434,3.82045,2617.5,2617.2,2.3783]
[1724765978636,3.82,2617.8,2617.3,3.82063]
[1724765979003,3.8209,2617.2,2616.9,0.92360692]
[1724765979336,3.82008,2617.8,2617.0,3.82107]
[1724765979495,3.82056,2617.5,2616.8,6.19967]
[1724765979697,3.82068,2617.4,2616.9,0.23783]
[1724765980398,3.82074,2617.3,2616.9,0.23783]
[1724765980735,3.82154,2616.8,2616.4,2.3783]
[1724765981246,7.64305,2616.8,2616.4,2.3783]
[1724765981458,3.82162,2616.7,2616.4,2.3783]
[1724765981609,3.82199,2616.5,2615.9,3.8227]
[1724765982055,3.82167,2616.7,2616.1,3.82238]
[1724765982227,3.82167,2616.7,2615.6,11.61613921]
[1724765982228,3.822,2616.5,2615.8,3.82281]
[1724765982424,3.822,2616.5,2615.9,4.28138443]
[1724765982620,3.82134,2616.9,2615.9,0.382281]
[1724765982826,3.82195,2616.5,2615.9,3.82266]
[1724765983359,3.82139,2616.9,2616.2,2.3897]
[1724765983658,3.82109,2617.1,2616.4,3.82191]
[1724765983948,3.82117,2617.0,2616.5,0.07643016]
[1724765984158,7.64196,2617.2,2616.5,4.67032018]
[1724765984308,3.82103,2617.1,2616.5,4.67032018]
[1724765984507,3.82132,2616.9,2616.5,0.84846018]
[1724765984735,3.8215,2616.8,2616.4,3.0]
[1724765984930,3.8215,2616.8,2616.2,5.3897]
[1724765985145,3.8215,2616.8,2616.3,0.53897]
[1724765985374,7.64305,2616.8,2616.3,0.53897]
[1724765985576,3.8215,2616.8,2616.3,0.53897]
[1724765985759,3.82124,2617.0,2616.3,4.43750767]
[1724765985760,3.82132,2616.9,2616.3,4.43750767]
[1724765985957,7.64254,2617.0,2616.4,4.50475077]
[1724765986276,3.82154,2616.8,2616.4,0.68272077]
[1724765986478,3.82132,2616.9,2616.3,0.53897]
[1724765986672,3.82132,2616.9,2616.4,0.07643047]
[1724765986871,3.82132,2616.9,2616.3,0.61540047]
[1724765987075,3.82156,2616.8,2616.3,4.43756047]
[1724765987375,3.82132,2616.9,2616.3,4.43755047]
[1724765987586,3.82132,2616.9,2616.4,0.68272505]
[1724765987738,3.8216,2616.7,2616.3,0.53897]
[1724765988072,3.82167,2616.7,2616.2,2.3897]
[1724765988278,3.82176,2616.6,2616.2,2.3897]
[1724765988663,3.82191,2616.5,2616.2,2.3897]
[1724765988849,3.82191,2616.5,2616.0,3.0]
[1724765988850,3.82208,2616.4,2616.0,3.0]
[1724765989048,3.82208,2616.4,2616.0,0.682268]
[1724765989454,7.64314,2616.8,2616.2,3.82233]
[1724765989789,3.82155,2616.8,2616.2,0.4504598]
[1724765990496,3.82155,2616.8,2616.3,3.82217]
[1724765990661,3.82121,2617.0,2616.4,2.3317]
[1724765991002,3.82154,2616.8,2616.4,2.75896298]
[1724765991166,3.82124,2617.0,2616.4,2.3317]
[1724765991362,3.82139,2616.9,2616.4,6.77674809]
[1724765991863,3.82139,2616.9,2616.4,2.3317]
[1724765992334,3.82161,2616.7,2616.4,2.3317]
[1724765992798,3.82122,2617.0,2616.4,2.3317]
[1724765992999,7.64252,2617.0,2616.5,0.0764327]
[1724765993184,3.82149,2616.8,2616.4,2.3317]
[1724765993496,3.82091,2617.2,2616.6,3.82166]
[1724765994069,7.64187,2617.2,2616.6,3.82166]
[1724765994256,3.82091,2617.2,2616.6,8.26624938]
[1724765994578,7.64187,2617.2,2616.6,4.44458938]
[1724765994752,7.64193,2617.2,2616.6,4.52101462]
[1724765994961,3.82102,2617.1,2616.7,0.45210146]
[1724765995260,3.82083,2617.3,2616.7,0.45210146]
[1724765995490,3.82089,2617.2,2616.7,0.45210146]
[1724765995799,3.82089,2617.2,2616.6,4.52101462]
[1724765996005,3.82089,2617.2,2616.6,0.69940462]
[1724765996219,3.82089,2617.2,2616.6,0.07642524]
[1724765996716,3.82118,2617.0,2616.6,0.07642524]
[1724765996877,3.82145,2616.9,2616.4,6.15364]
[1724765997077,3.82118,2617.0,2616.4,6.15364]
[1724765997078,3.82156,2616.8,2616.4,2.3317]
[1724765997278,3.82156,2616.8,2616.5,0.23317]
[1724765997719,3.82126,2617.0,2616.5,4.13136392]
[1724765998027,3.82102,2617.1,2616.6,3.82166]
[1724765998321,3.82205,2616.4,2616.1,7.3]
[1724765998503,3.82203,2616.5,2616.0,6.11315]
[1724765999181,3.8217,2616.7,2616.0,6.11315]
[1724765999598,3.8211,2617.1,2616.6,3.82173]
[1724765999892,3.82124,2617.0,2616.7,0.382173]
[1724766000091,3.82124,2617.0,2616.5,3.89829803]